[Event "18th Charleroi Open-C 2019"]
[Site "Charleroi"]
[Date "2019.07.27"]
[Round "1.1"]
[White "Oosterlinck, Luc"]
[Black "Pierquin, Jean-Bernard"]
[Result "1-0"]
[ECO "B01"]
[WhiteElo "1593"]
[BlackElo "1313"]
[Annotator "NA RC"]
[PlyCount "46"]
[EventDate "2019.07.22"]
[EventType "swiss"]
[EventCountry "BEL"]
[SourceTitle "playchess.com"]
[Source "ChessBase"]
[SourceQuality "1"]
[TimeControl "40/5400+30:1800+30"]

1. e4 {[%emt 0:00:00]} d5 {[%emt 0:00:00]} 2. exd5 {[%emt 0:00:00]} Nf6 {[%emt 0:00:00]} 3. d4 {[%emt 0:00:00]} Bg4 {[%emt 0:00:00]} 4. Be2 {[%emt 0:00:39]} Bxe2 {[%emt 0:00:00]} 5. Nxe2 {[%emt 0:00:14]} Qxd5 {[%emt 0:00:00]} 6. O-O {[%emt 0:00:21]} Nc6 {[%emt 0:00:00]} 7. Nbc3 {[%emt 0:01:39]} Qf5 {[%emt 0:02:56]} 8. Ng3 {[%emt 0:03:16]} Qa5 {[%emt 0:00:02]} 9. Be3 {[%emt 0:00:52]} e6 {[%emt 0:03:17]} 10. a3 {[%emt 0:01:07]} O-O-O {[%emt 0:00:48]} 11. Nce4 {[%emt 0:02:47]} Nxe4 {[%emt 0:00:28]} 12. Nxe4 {[%emt 0:00:11]} Be7 {[%emt 0:11:14]} 13. c3 {[%emt 0:01:21]} f5 {[%emt 0:03:35]} 14. Ng5 {[%emt 0:01:23]} Rd7 {[%emt 0:02:17]} 15. Nxe6 {[%emt 0:01:39]} Rg8 {[%emt 0:02:29]} 16. Qb3 {[%emt 0:02:53]} g5 {[%emt 0:07:35]} 17. Nc5 {[%emt 0:01:04]} Qb6 {[%emt 0:10:00]} 18. Qxg8+ {[%emt 0:00:51]} Rd8 {[%emt 0:00:04]} 19. Qe6+ {[%emt 0:00:51]} Kb8 {[%emt 0:00:17]} 20. Nd7+ {[%emt 0:00:26]} Rxd7 {[%emt 0:00:54]} 21. Qxd7 {[%emt 0:00:11]} f4 {[%emt 0:03:52]} 22. d5 {[%emt 0:03:02]} fxe3 {[%emt 0:00:58]} 23. dxc6 {[%emt 1:16:43]} e2 {[%emt 0:02:50]} 1-0

[Event "18th Charleroi Open-C 2019"]
[Site "Charleroi"]
[Date "2019.07.27"]
[Round "1.2"]
[White "Menolascina, Francesco"]
[Black "Lenoir, Aurele"]
[Result "0-1"]
[ECO "A00"]
[WhiteElo "1298"]
[BlackElo "1592"]
[Annotator "NA RC"]
[PlyCount "80"]
[EventDate "2019.07.22"]
[EventType "swiss"]
[EventCountry "BEL"]
[SourceTitle "playchess.com"]
[Source "ChessBase"]
[SourceQuality "1"]
[TimeControl "40/5400+30:1800+30"]

1. b4 {[%emt 0:00:00]} e5 2. Bb2 {[%emt 1:31:00]} d6 {[%emt 1:31:00]} 3. e3 {[%emt 0:00:30]} Nf6 {[%emt 0:00:30]} 4. c4 {[%emt 0:00:00]} Be7 5. Nc3 {[%emt 0:01:00]} Bf5 {[%emt 0:01:00]} 6. Nf3 {[%emt 0:00:30]} O-O {[%emt 0:00:30]} 7. Be2 {[%emt 0:00:30]} c6 {[%emt 0:00:30]} 8. O-O {[%emt 0:00:30]} Nbd7 {[%emt 0:00:30]} 9. d3 {[%emt 0:00:30]} d5 {[%emt 0:00:30]} 10. c5 {[%emt 0:00:30]} Qc7 {[%emt 0:00:30]} 11. a4 {[%emt 0:00:30]} a5 {[%emt 0:00:30]} 12. Ba3 {[%emt 0:00:30]} axb4 {[%emt 0:00:00]} 13. Bxb4 {[%emt 0:00:30]} Bxc5 {[%emt 0:01:00]} 14. Bxc5 {[%emt 0:00:00]} Nxc5 {[%emt 0:00:30]} 15. Nh4 {[%emt 0:01:00]} Be6 {[%emt 0:00:30]} 16. d4 {[%emt 0:00:30]} exd4 {[%emt 0:00:30]} 17. exd4 {[%emt 0:00:00]} Nce4 {[%emt 0:00:30]} 18. Nxe4 {[%emt 0:00:00]} Nxe4 {[%emt 0:00:30]} 19. Bd3 {[%emt 0:01:30]} Qe7 {[%emt 0:00:30]} 20. Nf3 {[%emt 0:00:30]} Bg4 {[%emt 0:00:00]} 21. Qe2 {[%emt 0:00:30]} Bxf3 {[%emt 0:00:30]} 22. gxf3 {[%emt 0:00:30]} Qg5+ {[%emt 0:00:30]} 23. Kh1 {[%emt 0:00:00]} Nd6 {[%emt 0:00:00]} 24. Rg1 {[%emt 0:00:00]} Qf6 {[%emt 0:00:30]} 25. Rg2 {[%emt 0:00:30]} Rfe8 {[%emt 0:00:00]} 26. Qc2 {[%emt 0:00:30]} g6 {[%emt 0:00:30]} 27. Rag1 {[%emt 0:00:30]} Qxf3 {[%emt 0:00:00]} 28. Qd1 {[%emt 0:00:00]} Qxd1 {[%emt 0:00:00]} 29. Rxd1 {[%emt 0:01:00]} Rxa4 {[%emt 0:00:00]} 30. Bf1 {[%emt 0:00:30]} Re4 {[%emt 0:00:30]} 31. Rg1 {[%emt 0:00:00]} Raxd4 {[%emt 0:00:30]} 32. Ra1 {[%emt 0:00:00]} Ra4 {[%emt 0:00:00]} 33. Rb1 {[%emt 0:00:00]} b5 {[%emt 0:00:00]} 34. Bh3 {[%emt 0:00:00]} f5 {[%emt 0:00:00]} 35. f3 {[%emt 0:00:00]} Re2 {[%emt 0:00:00]} 36. Rbc1 {[%emt 0:00:00]} Raa2 {[%emt 0:00:00]} 37. Bg2 {[%emt 0:03:00]} Nc4 {[%emt 0:00:00]} 38. Rce1 {[%emt 0:00:00]} b4 {[%emt 0:00:00]} 39. Rxe2 {[%emt 0:00:00]} Rxe2 {[%emt 0:04:30]} 40. Bf1 {[%emt 0:00:00]} Re1 {[%emt 0:00:00]} 0-1

[Event "18th Charleroi Open-C 2019"]
[Site "Charleroi"]
[Date "2019.07.27"]
[Round "1.3"]
[White "Toth, Charles"]
[Black "Hurreau, Jean Francois"]
[Result "1-0"]
[ECO "A03"]
[WhiteElo "1585"]
[BlackElo "1293"]
[Annotator "NA RC"]
[PlyCount "65"]
[EventDate "2019.07.22"]
[EventType "swiss"]
[EventCountry "BEL"]
[SourceTitle "playchess.com"]
[Source "ChessBase"]
[SourceQuality "1"]
[TimeControl "40/5400+30:1800+30"]

1. f4 {[%emt 0:00:00]} d5 {[%emt 0:00:07]} 2. Nf3 {[%emt 0:00:00]} Nc6 {[%emt 0:00:27]} 3. e3 {[%emt 0:00:01]} Bg4 {[%emt 0:01:23]} 4. Bb5 {[%emt 0:00:21]} Bxf3 {[%emt 0:00:39]} 5. Bxc6+ {[%emt 0:00:22]} bxc6 {[%emt 0:00:07]} 6. Qxf3 {[%emt 0:00:20]} Nf6 {[%emt 0:00:48]} 7. Nc3 {[%emt 0:00:48]} e6 {[%emt 0:01:24]} 8. O-O {[%emt 0:02:04]} Bd6 {[%emt 0:07:26]} 9. d3 {[%emt 0:00:38]} O-O {[%emt 0:01:57]} 10. e4 {[%emt 0:00:26]} Bc5+ {[%emt 0:01:52]} 11. Kh1 {[%emt 0:00:12]} Qd7 {[%emt 0:01:18]} 12. e5 {[%emt 0:03:30]} Ne8 {[%emt 0:02:57]} 13. Na4 {[%emt 0:00:40]} Bb6 {[%emt 0:02:28]} 14. b3 {[%emt 0:00:59]} f6 {[%emt 0:03:10]} 15. Qe2 {[%emt 0:00:50]} f5 {[%emt 0:03:13]} 16. Ba3 {[%emt 0:02:30]} Rf7 {[%emt 0:01:01]} 17. Nc5 {[%emt 0:02:31]} Qe7 {[%emt 0:02:44]} 18. d4 {[%emt 0:01:03]} g6 {[%emt 0:02:12]} 19. Qa6 {[%emt 0:02:16]} Ng7 {[%emt 0:07:24]} 20. Bb4 {[%emt 0:01:16]} Bxc5 {[%emt 0:06:30]} 21. Bxc5 {[%emt 0:00:16]} Qd7 {[%emt 0:01:19]} 22. b4 {[%emt 0:00:39]} Qe8 {[%emt 0:05:39]} 23. Rf3 {[%emt 1:19:48]} h5 {[%emt 0:01:28]} 24. Raf1 {[%emt 0:00:39]} h4 {[%emt 0:01:45]} 25. Ra3 {[%emt 0:00:48]} Nh5 {[%emt 0:06:28]} 26. Bxa7 {[%emt 0:02:25]} Rh7 {[%emt 0:00:21]} 27. Qd3 {[%emt 0:00:46]} Ng3+ {[%emt 0:05:02]} 28. hxg3 hxg3+ {[%emt 0:00:01]} 29. Kg1 {[%emt 0:01:07]} Qe7 {[%emt 0:00:30]} 30. Qxg3 {[%emt 0:00:29]} Kg7 {[%emt 0:01:02]} 31. Rff3 {[%emt 0:02:15]} Qxb4 {[%emt 0:00:22]} 32. Rfb3 {[%emt 0:00:42]} Qxd4+ {[%emt 0:00:15]} 33. Bxd4 {[%emt 0:00:21]} 1-0

[Event "18th Charleroi Open-C 2019"]
[Site "Charleroi"]
[Date "2019.07.27"]
[Round "1.5"]
[White "Auquier, Yvan"]
[Black "Godde, Paul"]
[Result "1-0"]
[ECO "E43"]
[WhiteElo "1574"]
[BlackElo "1282"]
[Annotator "NA RC"]
[PlyCount "58"]
[EventDate "2019.07.22"]
[EventType "swiss"]
[EventCountry "BEL"]
[SourceTitle "playchess.com"]
[Source "ChessBase"]
[SourceQuality "1"]
[TimeControl "40/5400+30:1800+30"]

1. d4 {[%emt 0:00:00]} Nf6 {[%emt 0:00:00]} 2. Nf3 {[%emt 0:00:00]} e6 {[%emt 0:00:00]} 3. c4 {[%emt 0:00:07]} b6 {[%emt 0:01:33]} 4. Nc3 {[%emt 0:00:19]} Bb4 {[%emt 0:00:19]} 5. e3 {[%emt 0:01:46]} Bb7 {[%emt 0:01:29]} 6. a3 {[%emt 0:01:03]} Bxc3+ {[%emt 0:00:30]} 7. bxc3 {[%emt 0:00:22]} O-O {[%emt 0:01:13]} 8. Be2 {[%emt 0:00:34]} c5 {[%emt 0:01:12]} 9. O-O {[%emt 0:00:48]} d6 {[%emt 0:03:04]} 10. a4 {[%emt 0:02:47]} Nbd7 {[%emt 0:02:11]} 11. Bb2 {[%emt 0:08:43]} Rc8 {[%emt 0:04:51]} 12. Qb3 {[%emt 0:05:47]} a5 {[%emt 0:07:14]} 13. Ne1 {[%emt 0:03:32]} Ba6 {[%emt 0:05:08]} 14. Nc2 {[%emt 0:02:07]} d5 {[%emt 0:02:44]} 15. Na3 {[%emt 0:01:08]} cxd4 {[%emt 1:06:02]} 16. cxd4 {[%emt 1:08:57]} Ne4 {[%emt 0:00:00]} 17. Rfc1 {[%emt 0:00:00]} Qf6 {[%emt 0:00:00]} 18. f3 {[%emt 0:00:00]} Nd6 {[%emt 0:00:00]} 19. Nb5 {[%emt 0:00:00]} Nxb5 {[%emt 0:00:00]} 20. cxb5 {[%emt 0:00:00]} Bb7 {[%emt 0:00:00]} 21. Ba3 {[%emt 0:00:00]} Rxc1+ {[%emt 0:03:00]} 22. Rxc1 {[%emt 0:00:00]} Rc8 {[%emt 0:00:00]} 23. Rxc8+ {[%emt 0:00:00]} Bxc8 {[%emt 0:00:00]} 24. Qc3 {[%emt 0:00:00]} Qd8 {[%emt 0:04:30]} 25. Qc6 {[%emt 0:00:00]} Nb8 {[%emt 0:00:00]} 26. Qd6 {[%emt 0:00:00]} Qxd6 {[%emt 0:05:30]} 27. Bxd6 {[%emt 0:00:00]} Nd7 {[%emt 0:00:00]} 28. Bd3 {[%emt 0:00:00]} Bb7 {[%emt 0:00:00]} 29. Kf2 {[%emt 0:00:00]} f6 {[%emt 0:00:00]} 1-0

[Event "18th Charleroi Open-C 2019"]
[Site "Charleroi"]
[Date "2019.07.27"]
[Round "1.6"]
[White "Verbanck, Mario"]
[Black "Dejasse, Daniel"]
[Result "0-1"]
[ECO "C11"]
[WhiteElo "1268"]
[BlackElo "1568"]
[Annotator "NA RC"]
[PlyCount "106"]
[EventDate "2019.07.22"]
[EventType "swiss"]
[EventCountry "BEL"]
[SourceTitle "playchess.com"]
[Source "ChessBase"]
[SourceQuality "1"]
[TimeControl "40/5400+30:1800+30"]

1. e4 {[%emt 0:00:00]} c5 {[%emt 0:00:00]} 2. Nf3 {[%emt 0:00:00]} d6 {[%emt 0:00:00]} 3. Nc3 {[%emt 0:00:00]} Nc6 {[%emt 0:00:01]} 4. Bc4 {[%emt 0:00:13]} e6 {[%emt 0:00:07]} 5. Bb5 {[%emt 0:00:49]} Nf6 {[%emt 0:00:26]} 6. d4 {[%emt 0:00:22]} d5 {[%emt 0:00:31]} 7. e5 {[%emt 0:00:24]} Nd7 {[%emt 0:00:29]} 8. dxc5 {[%emt 0:01:33]} Bxc5 {[%emt 0:02:05]} 9. Bf4 {[%emt 0:02:34]} f6 {[%emt 0:03:10]} 10. O-O {[%emt 0:01:29]} O-O {[%emt 0:00:59]} 11. exf6 {[%emt 0:01:48]} Qxf6 {[%emt 0:03:04]} 12. Bg5 {[%emt 0:03:20]} Qg6 {[%emt 0:03:22]} 13. Bd3 {[%emt 0:06:07]} Qf7 {[%emt 0:04:17]} 14. Ne2 {[%emt 0:05:50]} e5 {[%emt 0:07:03]} 15. Nd2 {[%emt 0:05:10]} Qh5 {[%emt 0:04:20]} 16. h4 {[%emt 0:03:31]} h6 {[%emt 0:01:16]} 17. Ng3 {[%emt 0:01:23]} Qxd1 {[%emt 0:00:17]} 18. Raxd1 {[%emt 0:00:22]} hxg5 {[%emt 0:00:11]} 19. hxg5 {[%emt 0:00:23]} e4 {[%emt 0:02:19]} 20. Bb5 {[%emt 0:01:23]} a6 {[%emt 0:01:17]} 21. Ba4 {[%emt 0:05:49]} Nb6 {[%emt 0:01:49]} 22. Bb3 {[%emt 0:00:45]} Bg4 {[%emt 0:01:19]} 23. Rc1 {[%emt 0:01:09]} e3 {[%emt 0:01:06]} 24. Nde4 {[%emt 0:01:42]} exf2+ {[%emt 0:01:07]} 25. Nxf2 {[%emt 0:00:59]} Bxf2+ {[%emt 0:00:32]} 26. Rxf2 {[%emt 0:00:16]} Rxf2 {[%emt 0:00:17]} 27. Kxf2 {[%emt 0:00:13]} Kh7 {[%emt 0:02:15]} 28. c4 {[%emt 0:01:38]} dxc4 {[%emt 0:00:25]} 29. Bxc4 {[%emt 0:00:12]} Ne5 {[%emt 0:01:03]} 30. b3 {[%emt 0:01:34]} Nbxc4 {[%emt 0:00:28]} 31. Rh1+ {[%emt 0:00:36]} Kg6 {[%emt 0:00:37]} 32. bxc4 {[%emt 0:00:12]} Nxc4 {[%emt 0:00:55]} 33. Ne4 {[%emt 0:02:43]} Kf5 {[%emt 0:01:28]} 34. Re1 {[%emt 0:00:49]} Ne5 {[%emt 0:02:22]} 35. Nd6+ {[%emt 0:01:21]} Ke6 {[%emt 0:02:48]} 36. Nc4 {[%emt 0:00:24]} Rf8+ {[%emt 0:00:10]} 37. Kg1 {[%emt 0:00:31]} Rf5 {[%emt 0:00:20]} 38. Kh2 {[%emt 0:02:58]} Rxg5 {[%emt 0:02:08]} 39. Kg3 {[%emt 0:01:04]} Be2+ {[%emt 0:01:02]} 40. Kf4 {[%emt 0:00:48]} Rg4+ {[%emt 0:00:10]} 41. Ke3 {[%emt 0:30:56]} Bxc4 {[%emt 0:30:15]} 42. Kf2 {[%emt 0:04:56]} Kf5 {[%emt 0:00:18]} 43. Rh1 {[%emt 0:03:10]} Kf4 {[%emt 0:01:56]} 44. Rd1 {[%emt 0:02:45]} Nd3+ {[%emt 0:00:30]} 45. Kg1 {[%emt 0:00:55]} Kg3 {[%emt 0:00:35]} 46. Rf1 {[%emt 0:00:43]} Rf4 {[%emt 0:00:21]} 47. Rxf4 {[%emt 0:02:41]} Nxf4 {[%emt 0:00:23]} 48. a4 {[%emt 0:00:24]} b5 {[%emt 0:00:10]} 49. axb5 {[%emt 0:00:23]} axb5 {[%emt 0:00:12]} 50. Kh1 {[%emt 0:00:14]} b4 {[%emt 0:00:07]} 51. Kg1 {[%emt 0:00:05]} b3 {[%emt 0:00:00]} 52. Kh1 {[%emt 0:00:06]} b2 {[%emt 0:00:00]} 53. Kg1 {[%emt 0:00:03]} b1=Q# {[%emt 0:00:03]} 0-1

[Event "18th Charleroi Open-C 2019"]
[Site "Charleroi"]
[Date "2019.07.28"]
[Round "2.1"]
[White "Van Hille, Clara"]
[Black "Oosterlinck, Luc"]
[Result "1-0"]
[ECO "C45"]
[WhiteElo "1391"]
[BlackElo "1593"]
[Annotator "NA"]
[PlyCount "109"]
[EventDate "2019.07.22"]
[EventType "swiss"]
[EventCountry "BEL"]
[SourceTitle "playchess.com"]
[Source "ChessBase"]
[SourceQuality "1"]
[TimeControl "40/5400+30:1800+30"]

1. e4 {[%emt 0:00:00]} e5 {[%emt 0:00:00]} 2. Nf3 {[%emt 0:00:00]} Nc6 {[%emt 0:00:00]} 3. Nc3 {[%emt 0:00:00]} Nf6 {[%emt 0:00:02]} 4. d4 {[%emt 0:00:00]} exd4 {[%emt 0:00:36]} 5. Nxd4 {[%emt 0:00:07]} Nxd4 {[%emt 0:03:40]} 6. Qxd4 {[%emt 0:04:15]} d6 {[%emt 0:00:13]} 7. Be2 {[%emt 0:01:23]} Be7 {[%emt 0:00:26]} 8. O-O {[%emt 0:01:55]} O-O {[%emt 0:06:58]} 9. b3 {[%emt 1:26:50]} Be6 {[%emt 1:22:35]} 10. Bb2 {[%emt 0:00:00]} c5 {[%emt 0:00:00]} 11. Qd3 {[%emt 0:00:00]} a6 {[%emt 0:01:00]} 12. Nd5 Bxd5 {[%emt 0:00:00]} 13. exd5 {[%emt 0:00:00]} Qb6 {[%emt 0:00:00]} 14. c4 {[%emt 0:00:00]} Qd8 {[%emt 0:00:00]} 15. a4 {[%emt 0:00:00]} Ne8 {[%emt 0:00:00]} 16. Rab1 {[%emt 0:00:00]} Bf6 {[%emt 0:00:00]} 17. Bc1 {[%emt 0:00:00]} Nc7 {[%emt 0:00:00]} 18. a5 {[%emt 0:00:00]} Rb8 {[%emt 0:00:00]} 19. Bd2 {[%emt 0:00:00]} b5 {[%emt 0:00:00]} 20. axb6 {[%emt 0:00:00]} Rxb6 {[%emt 0:00:00]} 21. Ba5 {[%emt 0:00:00]} Rb7 {[%emt 0:00:00]} 22. Bd1 {[%emt 0:06:30]} Qd7 {[%emt 0:00:00]} 23. Bc2 {[%emt 0:00:00]} g6 {[%emt 0:00:00]} 24. Rfe1 {[%emt 0:00:00]} Re8 {[%emt 0:00:00]} 25. Rxe8+ {[%emt 0:00:00]} Qxe8 {[%emt 0:00:00]} 26. Re1 {[%emt 0:00:00]} Qd7 {[%emt 0:00:00]} 27. Re3 {[%emt 0:00:00]} Qg4 {[%emt 0:00:00]} 28. Qe4 {[%emt 0:00:00]} Qxe4 {[%emt 0:00:00]} 29. Rxe4 {[%emt 0:00:00]} Kf8 {[%emt 0:00:00]} 30. Kf1 {[%emt 0:00:00]} Ne8 {[%emt 0:00:00]} 31. Ke2 {[%emt 0:00:00]} Re7 {[%emt 0:00:00]} 32. Kf3 {[%emt 0:00:00]} Bd4 {[%emt 0:00:00]} 33. h3 {[%emt 0:03:26]} Nf6 {[%emt 0:00:00]} 34. Re2 {[%emt 0:01:06]} Rxe2 {[%emt 0:00:00]} 35. Kxe2 {[%emt 0:00:05]} Nd7 {[%emt 0:00:00]} 36. f4 {[%emt 0:01:35]} f5 {[%emt 0:00:00]} 37. Kf3 {[%emt 0:00:27]} h5 {[%emt 0:00:00]} 38. g4 {[%emt 0:00:43]} hxg4+ {[%emt 0:00:00]} 39. hxg4 {[%emt 0:00:06]} fxg4+ {[%emt 0:00:00]} 40. Kxg4 {[%emt 0:00:13]} Kf7 {[%emt 0:00:00]} 41. f5 {[%emt 0:31:17]} gxf5+ {[%emt 0:00:00]} 42. Kxf5 {[%emt 0:00:00]} Ne5 {[%emt 0:00:00]} 43. Be4 {[%emt 0:00:00]} Ke7 {[%emt 0:00:00]} 44. Bd2 {[%emt 0:00:00]} Nf7 {[%emt 0:00:00]} 45. Ba5 {[%emt 0:00:00]} Be3 {[%emt 0:00:00]} 46. Bf3 {[%emt 0:00:00]} Bc1 {[%emt 0:00:00]} 47. Bc3 {[%emt 0:00:00]} Be3 {[%emt 0:00:00]} 48. Bh5 {[%emt 0:00:00]} Bc1 {[%emt 0:00:00]} 49. Bf3 {[%emt 0:00:00]} Be3 {[%emt 0:00:00]} 50. Bh5 {[%emt 0:00:00]} Bh6 {[%emt 0:00:00]} 51. Bf6+ {[%emt 0:00:00]} Kf8 {[%emt 0:00:00]} 52. Ke6 {[%emt 0:06:02]} Ng5+ {[%emt 0:00:00]} 53. Bxg5 {[%emt 0:00:00]} Bxg5 54. Kxd6 Be7+ {[%emt 0:00:00]} 55. Kc6 {[%emt 0:00:00]} 1-0

[Event "18th Charleroi Open-C 2019"]
[Site "Charleroi"]
[Date "2019.07.28"]
[Round "2.2"]
[White "Lenoir, Aurele"]
[Black "Recloux, Georges"]
[Result "1/2-1/2"]
[ECO "C47"]
[WhiteElo "1592"]
[BlackElo "1384"]
[Annotator "NA"]
[PlyCount "93"]
[EventDate "2019.07.22"]
[EventType "swiss"]
[EventCountry "BEL"]
[SourceTitle "playchess.com"]
[Source "ChessBase"]
[SourceQuality "1"]
[TimeControl "40/5400+30:1800+30"]

1. e4 {[%emt 0:00:00]} Nc6 {[%emt 0:00:00]} 2. Nf3 {[%emt 0:00:00]} Nf6 {[%emt 0:00:03]} 3. Nc3 {[%emt 0:00:27]} e5 {[%emt 0:00:26]} 4. d4 {[%emt 0:01:33]} Bb4 {[%emt 0:03:11]} 5. Qd3 {[%emt 0:06:09]} Bxc3+ {[%emt 0:01:32]} 6. bxc3 {[%emt 0:00:36]} d6 {[%emt 0:00:33]} 7. Be2 {[%emt 0:01:21]} Qe7 {[%emt 0:01:45]} 8. d5 {[%emt 0:01:08]} Nd8 9. Bg5 {[%emt 0:00:40]} O-O {[%emt 0:00:33]} 10. O-O {[%emt 0:00:54]} b6 {[%emt 1:26:57]} 11. a4 {[%emt 0:02:46]} a5 {[%emt 0:00:00]} 12. Qe3 {[%emt 0:01:55]} Nb7 {[%emt 0:00:00]} 13. Bb5 {[%emt 0:01:06]} Nc5 {[%emt 0:00:00]} 14. Nd2 {[%emt 1:18:25]} Bd7 {[%emt 0:00:00]} 15. c4 {[%emt 0:00:00]} Bxb5 {[%emt 0:00:00]} 16. cxb5 {[%emt 0:00:00]} Kh8 {[%emt 0:00:00]} 17. Nb3 {[%emt 0:00:00]} Nxb3 {[%emt 0:00:00]} 18. Qxb3 {[%emt 0:00:00]} h6 {[%emt 0:00:00]} 19. Bxf6 {[%emt 0:00:00]} Qxf6 {[%emt 0:00:00]} 20. c4 {[%emt 0:00:00]} Qg6 {[%emt 0:00:00]} 21. Qe3 {[%emt 0:00:00]} f5 {[%emt 0:00:00]} 22. Rfe1 {[%emt 0:00:00]} f4 {[%emt 0:00:00]} 23. Qh3 {[%emt 0:00:00]} Rf6 {[%emt 0:00:00]} 24. f3 {[%emt 0:00:00]} Raf8 {[%emt 0:00:00]} 25. Re2 {[%emt 0:00:00]} Qf7 {[%emt 0:00:00]} 26. Raa2 {[%emt 0:00:00]} g5 {[%emt 0:00:00]} 27. Qg4 {[%emt 0:06:30]} Rg8 {[%emt 0:00:00]} 28. Rf2 {[%emt 0:00:00]} h5 {[%emt 0:00:00]} 29. Qh3 {[%emt 0:00:00]} Rh6 {[%emt 0:00:00]} 30. Kh1 {[%emt 0:00:00]} Kh7 {[%emt 0:00:00]} 31. g3 {[%emt 0:00:00]} fxg3 {[%emt 0:00:00]} 32. Qxg3 {[%emt 0:00:00]} Rf6 {[%emt 0:00:00]} 33. h3 {[%emt 0:00:00]} Kh6 {[%emt 0:00:00]} 34. Ra3 {[%emt 0:00:00]} Rf4 {[%emt 0:00:00]} 35. Kg1 {[%emt 0:00:00]} Rf8 {[%emt 0:00:00]} 36. Rg2 {[%emt 0:00:00]} Qf6 {[%emt 0:00:00]} 37. Rf2 {[%emt 0:00:00]} Rf7 {[%emt 0:00:00]} 38. Kf1 {[%emt 0:00:00]} Rh4 {[%emt 0:00:00]} 39. Ke2 {[%emt 0:00:00]} Qf4 {[%emt 0:00:00]} 40. Qxf4 {[%emt 0:00:00]} gxf4 {[%emt 0:00:00]} 41. Rh2 {[%emt 0:09:29]} Rg7 {[%emt 0:15:34]} 42. Ra1 {[%emt 0:00:07]} Rg3 {[%emt 0:01:05]} 43. Rah1 {[%emt 0:00:10]} Kg5 {[%emt 0:01:22]} 44. Kf2 {[%emt 0:00:08]} Kf6 {[%emt 0:00:17]} 45. Ke2 {[%emt 0:00:18]} Ke7 {[%emt 0:29:12]} 46. Kf2 {[%emt 0:29:18]} Rg7 {[%emt 0:00:30]} 47. Ra1 {[%emt 0:00:30]} 1/2-1/2

[Event "18th Charleroi Open-C 2019"]
[Site "Charleroi"]
[Date "2019.07.28"]
[Round "2.3"]
[White "Motmans, Matthias"]
[Black "Toth, Charles"]
[Result "1/2-1/2"]
[ECO "C47"]
[WhiteElo "1381"]
[BlackElo "1585"]
[Annotator "NA RC"]
[PlyCount "27"]
[EventDate "2019.07.22"]
[EventType "swiss"]
[EventCountry "BEL"]
[SourceTitle "playchess.com"]
[Source "ChessBase"]
[SourceQuality "1"]
[TimeControl "40/5400+30:1800+30"]

1. e4 {[%emt 0:00:00]} Nc6 {[%emt 0:00:00]} 2. Nf3 {[%emt 0:00:00]} Nf6 {[%emt 0:00:03]} 3. Nc3 {[%emt 0:00:27]} e5 {[%emt 0:00:26]} 4. d4 {[%emt 0:01:33]} Bb4 {[%emt 0:03:11]} 5. Qd3 {[%emt 0:06:09]} Bxc3+ {[%emt 0:01:32]} 6. bxc3 {[%emt 0:00:36]} d6 {[%emt 0:00:33]} 7. Be2 {[%emt 0:01:21]} Qe7 {[%emt 0:01:45]} 8. d5 {[%emt 0:01:08]} Nd8 9. Bg5 {[%emt 0:00:40]} O-O {[%emt 0:00:33]} 10. O-O {[%emt 0:00:54]} b6 {[%emt 0:01:17]} 11. a4 {[%emt 0:02:46]} a5 {[%emt 0:00:00]} 12. Qe3 {[%emt 0:01:55]} Nb7 {[%emt 0:00:00]} 13. Bb5 {[%emt 0:01:06]} Nc5 {[%emt 0:00:00]} 14. Nd2 {[%emt 0:02:24]} 1/2-1/2

[Event "18th Charleroi Open-C 2019"]
[Site "Charleroi"]
[Date "2019.07.28"]
[Round "2.4"]
[White "Sofia, Tommaso"]
[Black "Deschuyteneer, Lucien"]
[Result "1-0"]
[ECO "D36"]
[WhiteElo "1580"]
[BlackElo "1376"]
[Annotator "NA RC"]
[PlyCount "77"]
[EventDate "2019.07.22"]
[EventType "swiss"]
[EventCountry "BEL"]
[SourceTitle "playchess.com"]
[Source "ChessBase"]
[SourceQuality "1"]
[TimeControl "40/5400+30:1800+30"]

1. d4 {[%emt 0:00:00]} d5 {[%emt 0:00:30]} 2. c4 {[%emt 0:00:00]} e6 {[%emt 0:00:10]} 3. Nc3 {[%emt 0:00:06]} Nf6 {[%emt 0:00:09]} 4. cxd5 {[%emt 0:00:27]} exd5 {[%emt 0:00:08]} 5. Bg5 {[%emt 0:00:07]} Nbd7 {[%emt 0:00:24]} 6. e3 {[%emt 0:00:40]} c6 {[%emt 0:00:09]} 7. Bd3 {[%emt 0:00:36]} h6 {[%emt 0:00:41]} 8. Bh4 {[%emt 1:32:04]} Be7 {[%emt 0:00:36]} 9. Qc2 {[%emt 0:00:00]} Nh5 {[%emt 0:00:00]} 10. Bxe7 {[%emt 0:00:00]} Qxe7 {[%emt 0:00:00]} 11. Nge2 {[%emt 0:00:00]} Nhf6 {[%emt 0:00:00]} 12. O-O {[%emt 0:00:00]} O-O {[%emt 0:01:30]} 13. Rae1 {[%emt 0:00:00]} Re8 {[%emt 0:00:00]} 14. Ng3 {[%emt 0:00:00]} Nf8 {[%emt 0:00:00]} 15. f3 {[%emt 0:00:00]} Be6 {[%emt 0:00:30]} 16. e4 {[%emt 0:00:30]} dxe4 {[%emt 0:00:00]} 17. fxe4 {[%emt 0:00:00]} Qc7 {[%emt 0:01:00]} 18. a3 {[%emt 0:00:00]} Qb6 {[%emt 0:00:00]} 19. Qf2 {[%emt 0:00:00]} Bb3 {[%emt 0:00:00]} 20. e5 {[%emt 0:00:00]} Nd5 {[%emt 0:00:30]} 21. Qxf7+ {[%emt 0:01:00]} Kh8 {[%emt 0:00:00]} 22. Nh5 {[%emt 0:00:00]} Qxd4+ {[%emt 0:00:00]} 23. Kh1 {[%emt 0:00:00]} Qg4 {[%emt 0:00:00]} 24. Bf5 {[%emt 0:00:00]} Qg5 {[%emt 0:00:00]} 25. Ne4 {[%emt 0:00:00]} Qe7 {[%emt 0:00:30]} 26. Qxe7 {[%emt 0:00:00]} Rxe7 {[%emt 0:00:00]} 27. Rf3 {[%emt 0:00:00]} Bc4 {[%emt 0:00:00]} 28. Nd6 {[%emt 0:00:00]} Ba6 {[%emt 0:00:00]} 29. Rg3 {[%emt 0:00:00]} Rd8 {[%emt 0:00:00]} 30. Re4 {[%emt 0:00:00]} Rxd6 {[%emt 0:00:00]} 31. exd6 {[%emt 0:00:00]} Rxe4 {[%emt 0:00:00]} 32. Bxe4 {[%emt 0:00:00]} g6 {[%emt 0:00:00]} 33. Bxd5 {[%emt 0:00:00]} cxd5 {[%emt 0:00:00]} 34. Nf6 {[%emt 0:00:00]} Kg7 {[%emt 0:00:00]} 35. d7 {[%emt 0:00:00]} Nxd7 {[%emt 0:00:00]} 36. Nxd7 {[%emt 0:00:00]} Bb5 {[%emt 0:00:00]} 37. Nc5 {[%emt 0:00:00]} b6 {[%emt 0:00:00]} 38. Ne6+ {[%emt 0:00:00]} Kf6 {[%emt 0:07:00]} 39. Nf4 {[%emt 0:00:00]} 1-0